[Event "FIDE World Rapid Chess Championship 2021"]
[White "Michalik, Peter"]
[Black "Demchenko, Anton"]
[WhiteFideId "14907526"]
[BlackFideId "4160258"]
[WhiteElo "2515"]
[BlackElo "2666"]
[Result "1/2-1/2"]
[Round "04"]
[TimeControl "900+10"]
[Date "2021.12.26"]
[WhiteClock "0:12:57"]
[BlackClock "0:07:42"]

1. d4 {[%clk 0:15:17]}  d5 {[%clk 0:15:09]} 2. c4 {[%clk 0:15:17]}  dxc4 {[%clk 0:15:09]} 3. Nf3 {[%clk 0:15:17]}  Nf6 {[%clk 0:15:09]} 4. e3 {[%clk 0:15:17]}  e6 {[%clk 0:15:09]} 5. Bxc4 {[%clk 0:15:17]}  a6 {[%clk 0:15:09]} 6. O-O {[%clk 0:15:17]}  Be7 {[%clk 0:15:09]} 7. b3 {[%clk 0:15:17]}  O-O {[%clk 0:15:09]} 8. Bb2 {[%clk 0:15:17]}  b6 {[%clk 0:15:09]} 9. Qe2 {[%clk 0:15:17]}  Bb7 {[%clk 0:15:09]} 10. Rd1 {[%clk 0:15:32]}  Nbd7 {[%clk 0:15:02]} 11. Nc3 {[%clk 0:15:23]}  b5 {[%clk 0:15:02]} 12. Bd3 {[%clk 0:15:23]}  c5 {[%clk 0:15:02]} 13. dxc5 {[%clk 0:15:23]}  Bxc5 {[%clk 0:15:02]} 14. Ng5 {[%clk 0:15:23]}  h6 {[%clk 0:10:24]} 15. Nge4 {[%clk 0:15:11]}  Be7 {[%clk 0:10:24]} 16. Nxf6+ {[%clk 0:15:14]}  Bxf6 {[%clk 0:07:48]} 17. Be4 {[%clk 0:15:14]}  Bxe4 {[%clk 0:07:42]} 18. Nxe4 {[%clk 0:12:57]}  Bxb2 {[%clk 0:07:42]} 19. Qxb2 {[%clk 0:12:57]}  Qe7 {[%clk 0:07:42]} 20. Rac1 {[%clk 0:12:57]}  Nb6 {[%clk 0:07:42]} 1/2-1/2


[Site "http://www.Chess.com"]

[Event "FIDE World Rapid Chess Championship 2021"]
[White "Matlakov, Maxim"]
[Black "Bellahcene, Bilel"]
[WhiteFideId "4168003"]
[BlackFideId "696358"]
[WhiteElo "2652"]
[BlackElo "2397"]
[Result "1/2-1/2"]
[Round "04"]
[TimeControl "900+10"]
[Date "2021.12.26"]
[WhiteClock "0:00:41"]
[BlackClock "0:00:30"]

1. d4 {[%clk 0:15:18]}  e6 {[%clk 0:15:19]} 2. Nf3 {[%clk 0:15:18]}  Nf6 {[%clk 0:15:19]} 3. c4 {[%clk 0:15:18]}  Bb4+ {[%clk 0:15:19]} 4. Nbd2 {[%clk 0:15:18]}  b6 {[%clk 0:15:19]} 5. a3 {[%clk 0:15:18]}  Bxd2+ {[%clk 0:15:19]} 6. Nxd2 {[%clk 0:15:18]}  Bb7 {[%clk 0:15:19]} 7. Qc2 {[%clk 0:15:18]}  O-O {[%clk 0:15:52]} 8. b3 {[%clk 0:14:18]}  d6 {[%clk 0:10:00]} 9. Bb2 {[%clk 0:13:51]}  Nbd7 {[%clk 0:10:00]} 10. e4 {[%clk 0:13:51]}  c5 {[%clk 0:10:00]} 11. d5 {[%clk 0:12:26]}  exd5 {[%clk 0:09:36]} 12. cxd5 {[%clk 0:12:26]}  Re8 {[%clk 0:09:36]} 13. O-O-O {[%clk 0:12:26]}  a6 {[%clk 0:09:36]} 14. f3 {[%clk 0:11:45]}  b5 {[%clk 0:08:59]} 15. Kb1 {[%clk 0:11:45]}  Rc8 {[%clk 0:09:05]} 16. g4 {[%clk 0:11:05]}  c4 {[%clk 0:09:05]} 17. bxc4 {[%clk 0:11:05]}  Nb6 {[%clk 0:07:31]} 18. Rc1 {[%clk 0:10:47]}  Nfd7 {[%clk 0:07:31]} 19. Ka2 {[%clk 0:10:39]}  Na4 {[%clk 0:05:42]} 20. Bd4 {[%clk 0:09:58]}  Ndb6 {[%clk 0:05:42]} 21. h4 {[%clk 0:09:58]}  a5 {[%clk 0:05:42]} 22. h5 {[%clk 0:09:25]}  Qg5 {[%clk 0:04:12]} 23. h6 {[%clk 0:09:19]}  g6 {[%clk 0:02:42]} 24. Bd3 {[%clk 0:06:22]}  Qf4 {[%clk 0:02:50]} 25. Bxb6 {[%clk 0:05:04]}  Nxb6 {[%clk 0:01:39]} 26. Qb2 {[%clk 0:05:04]}  f6 {[%clk 0:01:39]} 27. Rhd1 {[%clk 0:05:04]}  b4 {[%clk 0:01:39]} 28. Bc2 {[%clk 0:02:23]}  Ba6 {[%clk 0:01:28]} 29. Qd4 {[%clk 0:02:23]}  Rb8 {[%clk 0:01:28]} 30. c5 {[%clk 0:01:05]}  dxc5 {[%clk 0:00:12]} 31. Qxc5 {[%clk 0:01:05]}  Be2 {[%clk 0:00:12]} 32. d6 {[%clk 0:01:05]}  Bxd1 {[%clk 0:00:12]} 33. Rxd1 {[%clk 0:01:05]}  Qxh6 {[%clk 0:00:12]} 34. Qxa5 {[%clk 0:01:05]}  bxa3 {[%clk 0:00:12]} 35. Bb3+ {[%clk 0:01:05]}  Kh8 {[%clk 0:00:12]} 36. Qc5 {[%clk 0:01:05]}  Nd7 {[%clk 0:00:12]} 37. Qd4 {[%clk 0:00:31]}  Qf4 {[%clk 0:00:00]} 38. Rh1 {[%clk 0:00:39]}  Ne5 {[%clk 0:00:00]} 39. Rd1 {[%clk 0:00:39]}  Red8 {[%clk 0:00:00]} 40. Rh1 {[%clk 0:00:39]}  Rd7 {[%clk 0:00:00]} 41. g5 {[%clk 0:00:39]}  Qxg5 {[%clk 0:00:00]} 42. Nc4 {[%clk 0:00:39]}  Rdb7 {[%clk 0:00:00]} 43. Nxe5 {[%clk 0:00:39]}  fxe5 {[%clk 0:00:00]} 44. Qc3 {[%clk 0:00:39]}  Qg2+ {[%clk 0:00:03]} 45. Bc2 {[%clk 0:00:23]}  Rb2+ {[%clk 0:00:06]} 46. Kxa3 {[%clk 0:00:32]}  Qg5 {[%clk 0:00:06]} 47. Qxb2 {[%clk 0:00:41]}  Rxb2 {[%clk 0:00:30]} 48. Kxb2 {[%clk 0:00:41]}  Qd8 {[%clk 0:00:30]} 49. Rd1 {[%clk 0:00:41]}  Qb6+ {[%clk 0:00:30]} 50. Bb3 {[%clk 0:00:41]}  Qf2+ {[%clk 0:00:30]} 51. Ka3 {[%clk 0:00:41]}  Qc5+ {[%clk 0:00:30]} 52. Kb2 {[%clk 0:00:41]}  Qf2+ {[%clk 0:00:30]} 53. Ka3 {[%clk 0:00:41]}  Qc5+ {[%clk 0:00:30]} 54. Kb2 {[%clk 0:00:41]}  Qf2+ {[%clk 0:00:30]} 1/2-1/2


[Site "http://www.Chess.com"]

[Event "FIDE World Rapid Chess Championship 2021"]
[White "Nihal, Sarin"]
[Black "Antipov, Mikhail Al."]
[WhiteFideId "25092340"]
[BlackFideId "4107012"]
[WhiteElo "2500"]
[BlackElo "2644"]
[Result "1-0"]
[Round "04"]
[TimeControl "900+10"]
[Date "2021.12.26"]
[WhiteClock "0:06:15"]
[BlackClock "0:00:13"]

1. d4 {[%clk 0:15:27]}  Nf6 {[%clk 0:15:28]} 2. Nf3 {[%clk 0:15:27]}  g6 {[%clk 0:15:28]} 3. g3 {[%clk 0:15:27]}  Bg7 {[%clk 0:15:28]} 4. Bg2 {[%clk 0:15:27]}  O-O {[%clk 0:15:28]} 5. O-O {[%clk 0:15:27]}  d5 {[%clk 0:15:28]} 6. c3 {[%clk 0:15:27]}  c6 {[%clk 0:15:28]} 7. Re1 {[%clk 0:15:27]}  Bf5 {[%clk 0:15:28]} 8. Nbd2 {[%clk 0:15:27]}  Qc8 {[%clk 0:15:28]} 9. Qb3 {[%clk 0:15:27]}  h6 {[%clk 0:15:28]} 10. Nh4 {[%clk 0:16:01]}  Be6 {[%clk 0:14:50]} 11. Qa3 {[%clk 0:15:42]}  Re8 {[%clk 0:14:59]} 12. e4 {[%clk 0:15:42]}  dxe4 {[%clk 0:14:59]} 13. Nxe4 {[%clk 0:15:42]}  Nbd7 {[%clk 0:14:59]} 14. Nxf6+ {[%clk 0:15:42]}  exf6 {[%clk 0:14:59]} 15. Bd2 {[%clk 0:15:42]}  Nb6 {[%clk 0:14:59]} 16. b3 {[%clk 0:15:42]}  Qd7 {[%clk 0:13:48]} 17. Qa5 {[%clk 0:15:49]}  Bd5 {[%clk 0:13:48]} 18. Bf1 {[%clk 0:15:49]}  f5 {[%clk 0:12:56]} 19. Rxe8+ {[%clk 0:13:58]}  Rxe8 {[%clk 0:12:56]} 20. Qxa7 {[%clk 0:15:11]}  Nc8 {[%clk 0:09:40]} 21. Qa3 {[%clk 0:15:11]}  f4 {[%clk 0:09:48]} 22. Ng2 {[%clk 0:12:09]}  fxg3 {[%clk 0:09:48]} 23. hxg3 {[%clk 0:12:09]}  Nd6 {[%clk 0:09:48]} 24. Re1 {[%clk 0:13:46]}  Rxe1 {[%clk 0:05:58]} 25. Nxe1 {[%clk 0:13:46]}  Ne4 {[%clk 0:05:58]} 26. Qc1 {[%clk 0:13:46]}  h5 {[%clk 0:05:47]} 27. Bg2 {[%clk 0:13:04]}  Qf5 {[%clk 0:04:40]} 28. Be3 {[%clk 0:13:04]}  c5 {[%clk 0:04:41]} 29. c4 {[%clk 0:12:41]}  cxd4 {[%clk 0:03:13]} 30. cxd5 {[%clk 0:10:49]}  dxe3 {[%clk 0:03:13]} 31. Qxe3 {[%clk 0:10:49]}  Nd6 {[%clk 0:03:13]} 32. Nd3 {[%clk 0:10:49]}  Qf6 {[%clk 0:03:13]} 33. Qf4 {[%clk 0:10:28]}  Qe7 {[%clk 0:03:13]} 34. a4 {[%clk 0:10:28]}  Nf5 {[%clk 0:03:13]} 35. Bf3 {[%clk 0:09:40]}  h4 {[%clk 0:00:42]} 36. gxh4 {[%clk 0:08:08]}  Nxh4 {[%clk 0:00:42]} 37. Be4 {[%clk 0:08:08]}  Bf8 {[%clk 0:00:27]} 38. d6 {[%clk 0:06:15]}  Qd8 {[%clk 0:00:13]} 39. Ne5 {[%clk 0:06:15]}  f5 {[%clk 0:00:13]} 40. Bd5+ {[%clk 0:06:15]}  Kg7 {[%clk 0:00:13]} 41. Nf7 {[%clk 0:06:15]}  Qf6 {[%clk 0:00:13]} 42. Qh6+ {[%clk 0:06:15]} 1-0


[Site "http://www.Chess.com"]

[Event "FIDE World Rapid Chess Championship 2021"]
[White "Volokitin, Andrei"]
[Black "Vastrukhin, Oleg"]
[WhiteFideId "14107090"]
[BlackFideId "4192770"]
[WhiteElo "2631"]
[BlackElo "2382"]
[Result "1-0"]
[Round "04"]
[TimeControl "900+10"]
[Date "2021.12.26"]
[WhiteClock "0:01:12"]
[BlackClock "0:02:00"]

1. e4 {[%clk 0:15:34]}  e6 {[%clk 0:15:26]} 2. d4 {[%clk 0:15:34]}  d5 {[%clk 0:15:26]} 3. Nc3 {[%clk 0:15:34]}  Bb4 {[%clk 0:15:26]} 4. e5 {[%clk 0:15:34]}  c5 {[%clk 0:15:26]} 5. a3 {[%clk 0:15:34]}  Bxc3+ {[%clk 0:15:26]} 6. bxc3 {[%clk 0:15:34]}  Nc6 {[%clk 0:15:26]} 7. Qg4 {[%clk 0:15:34]}  g6 {[%clk 0:15:26]} 8. h4 {[%clk 0:15:34]}  h6 {[%clk 0:15:26]} 9. Qf4 {[%clk 0:15:45]}  Qa5 {[%clk 0:16:02]} 10. Bd2 {[%clk 0:08:16]}  c4 {[%clk 0:16:02]} 11. Nf3 {[%clk 0:08:17]}  Bd7 {[%clk 0:15:00]} 12. Nh2 {[%clk 0:08:17]}  Rh7 {[%clk 0:15:05]} 13. Ng4 {[%clk 0:05:30]}  O-O-O {[%clk 0:15:05]} 14. Nf6 {[%clk 0:05:30]}  Nxf6 {[%clk 0:15:05]} 15. Qxf6 {[%clk 0:05:30]}  Re8 {[%clk 0:13:36]} 16. h5 {[%clk 0:04:01]}  g5 {[%clk 0:13:36]} 17. f4 {[%clk 0:04:01]}  Rg8 {[%clk 0:12:35]} 18. g4 {[%clk 0:03:23]}  gxf4 {[%clk 0:07:09]} 19. Qxf4 {[%clk 0:02:47]}  Ne7 {[%clk 0:07:09]} 20. Be2 {[%clk 0:02:32]}  Ba4 {[%clk 0:07:09]} 21. Kd1 {[%clk 0:02:32]}  Rgg7 {[%clk 0:07:09]} 22. Kc1 {[%clk 0:02:32]}  a6 {[%clk 0:07:09]} 23. Rf1 {[%clk 0:02:32]}  Kb8 {[%clk 0:07:09]} 24. Qf6 {[%clk 0:02:44]}  Ng8 {[%clk 0:06:17]} 25. Qh4 {[%clk 0:02:44]}  Ka7 {[%clk 0:06:19]} 26. Rb1 {[%clk 0:02:10]}  Qc7 {[%clk 0:06:19]} 27. Rb4 {[%clk 0:02:10]}  Qd7 {[%clk 0:04:31]} 28. Be3 {[%clk 0:02:10]}  a5 {[%clk 0:04:31]} 29. Rb1 {[%clk 0:01:58]}  Qe8 {[%clk 0:04:31]} 30. Kd2 {[%clk 0:01:58]}  Ne7 {[%clk 0:04:31]} 31. Rf6 {[%clk 0:01:58]}  Ng8 {[%clk 0:03:26]} 32. Rf2 {[%clk 0:01:39]}  Ne7 {[%clk 0:03:17]} 33. Qh1 {[%clk 0:01:39]}  Ka8 {[%clk 0:03:17]} 34. Qc1 {[%clk 0:01:39]}  Qg8 {[%clk 0:03:17]} 35. Rf4 {[%clk 0:00:24]}  Rh8 {[%clk 0:02:31]} 36. Qb2 {[%clk 0:00:24]}  b5 {[%clk 0:02:31]} 37. Rbf1 {[%clk 0:00:24]}  Qh7 {[%clk 0:02:31]} 38. Rf6 {[%clk 0:00:24]}  Ng8 {[%clk 0:02:31]} 39. R6f4 {[%clk 0:00:24]}  Ne7 {[%clk 0:02:31]} 40. Qc1 {[%clk 0:00:24]}  Rc8 {[%clk 0:02:31]} 41. Kd1 {[%clk 0:00:24]}  Rc7 {[%clk 0:02:31]} 42. Qd2 {[%clk 0:00:24]}  Kb7 {[%clk 0:02:31]} 43. Kc1 {[%clk 0:00:24]}  Ng8 {[%clk 0:02:31]} 44. Bd1 {[%clk 0:00:24]}  Rd7 {[%clk 0:02:32]} 45. Qf2 {[%clk 0:01:00]}  Rc7 {[%clk 0:02:56]} 46. Qh4 {[%clk 0:01:13]}  Rd7 {[%clk 0:02:56]} 47. R1f2 {[%clk 0:01:13]}  Kc7 {[%clk 0:02:56]} 48. Qg3 {[%clk 0:01:13]}  Kc8 {[%clk 0:02:56]} 49. Rg2 {[%clk 0:01:13]}  Rg5 {[%clk 0:02:56]} 50. Qf3 {[%clk 0:01:13]}  Rg7 {[%clk 0:02:56]} 51. Qf1 {[%clk 0:01:13]}  Kc7 {[%clk 0:02:56]} 52. Qf2 {[%clk 0:01:13]}  Kc8 {[%clk 0:03:04]} 53. Qh4 {[%clk 0:00:29]}  Kc7 {[%clk 0:03:04]} 54. Rg3 {[%clk 0:00:18]}  Ne7 {[%clk 0:03:03]} 55. Rf2 {[%clk 0:00:18]}  Kc6 {[%clk 0:01:45]} 56. Qf6 {[%clk 0:00:58]}  Ng8 {[%clk 0:01:45]} 57. Qf4 {[%clk 0:00:58]}  Rg5 {[%clk 0:01:45]} 58. Qf3 {[%clk 0:00:58]}  Rg7 {[%clk 0:01:45]} 59. g5 {[%clk 0:00:58]}  hxg5 {[%clk 0:01:45]} 60. Rxg5 {[%clk 0:00:58]}  Rxg5 {[%clk 0:01:45]} 61. Bxg5 {[%clk 0:00:58]}  Nh6 {[%clk 0:02:00]} 62. Qf6 {[%clk 0:01:12]}  Nf5 {[%clk 0:02:00]} 63. Rxf5 {[%clk 0:01:12]}  Qxf5 {[%clk 0:02:00]} 64. Qxf5 {[%clk 0:01:12]}  exf5 {[%clk 0:02:00]} 65. Bf6 {[%clk 0:01:12]}  Rb7 {[%clk 0:02:00]} 66. h6 {[%clk 0:01:12]} 1-0


[Site "http://www.Chess.com"]

[Event "FIDE World Rapid Chess Championship 2021"]
[White "Van Foreest, Lucas"]
[Black "Predke, Alexandr"]
[WhiteFideId "1039792"]
[BlackFideId "24107581"]
[WhiteElo "2374"]
[BlackElo "2630"]
[Result "1/2-1/2"]
[Round "04"]
[TimeControl "900+10"]
[Date "2021.12.26"]
[WhiteClock "0:14:55"]
[BlackClock "0:10:20"]

1. e4 {[%clk 0:15:27]}  e5 {[%clk 0:15:21]} 2. Nf3 {[%clk 0:15:27]}  Nc6 {[%clk 0:15:21]} 3. Bc4 {[%clk 0:15:27]}  Bc5 {[%clk 0:15:21]} 4. Nc3 {[%clk 0:15:36]}  Nf6 {[%clk 0:15:21]} 5. d3 {[%clk 0:15:36]}  h6 {[%clk 0:15:21]} 6. O-O {[%clk 0:15:36]}  d6 {[%clk 0:15:21]} 7. Na4 {[%clk 0:15:36]}  Bb6 {[%clk 0:15:21]} 8. a3 {[%clk 0:15:36]}  O-O {[%clk 0:15:21]} 9. h3 {[%clk 0:15:36]}  Be6 {[%clk 0:15:21]} 10. Bxe6 {[%clk 0:15:36]}  fxe6 {[%clk 0:15:21]} 11. b4 {[%clk 0:15:36]}  Qe8 {[%clk 0:15:21]} 12. Nxb6 {[%clk 0:15:36]}  axb6 {[%clk 0:15:21]} 13. Bd2 {[%clk 0:15:36]}  b5 {[%clk 0:15:21]} 14. c3 {[%clk 0:16:32]}  d5 {[%clk 0:16:04]} 15. Re1 {[%clk 0:16:32]}  Qh5 {[%clk 0:16:04]} 16. exd5 {[%clk 0:16:32]}  exd5 {[%clk 0:16:04]} 17. Nxe5 {[%clk 0:16:32]}  Qxd1 {[%clk 0:16:04]} 18. Raxd1 {[%clk 0:16:32]}  Nxe5 {[%clk 0:16:04]} 19. Rxe5 {[%clk 0:16:32]}  Rxa3 {[%clk 0:16:04]} 20. Rc1 {[%clk 0:15:20]}  Re8 {[%clk 0:09:38]} 21. Bf4 {[%clk 0:15:23]}  Rxe5 {[%clk 0:09:38]} 22. Bxe5 {[%clk 0:15:23]}  c6 {[%clk 0:09:38]} 23. Bxf6 {[%clk 0:15:23]}  gxf6 {[%clk 0:09:38]} 24. d4 {[%clk 0:15:23]}  Kf7 {[%clk 0:09:38]} 25. g4 {[%clk 0:15:23]}  Kg6 {[%clk 0:09:38]} 26. Kg2 {[%clk 0:15:23]}  f5 {[%clk 0:09:38]} 27. Kg3 {[%clk 0:15:23]}  fxg4 {[%clk 0:09:38]} 28. hxg4 {[%clk 0:15:23]}  h5 {[%clk 0:09:38]} 29. gxh5+ {[%clk 0:15:23]}  Kxh5 {[%clk 0:09:38]} 30. Kf4 {[%clk 0:15:23]}  Ra2 {[%clk 0:09:38]} 31. f3 {[%clk 0:15:38]}  Kg6 {[%clk 0:10:11]} 32. Re1 {[%clk 0:14:55]}  Kf6 {[%clk 0:10:20]} 33. Re3 {[%clk 0:14:55]}  Rg2 {[%clk 0:10:20]} 34. Rd3 {[%clk 0:14:55]}  Re2 {[%clk 0:10:20]} 35. Re3 {[%clk 0:14:55]}  Rg2 {[%clk 0:10:20]} 36. Rd3 {[%clk 0:14:55]}  Re2 {[%clk 0:10:20]} 1/2-1/2


[Site "http://www.Chess.com"]

[Event "FIDE World Rapid Chess Championship 2021"]
[White "Dziuba, Marcin"]
[Black "Vidit, Santosh Gujrathi"]
[WhiteFideId "1112953"]
[BlackFideId "5029465"]
[WhiteElo "2424"]
[BlackElo "2629"]
[Result "0-1"]
[Round "04"]
[TimeControl "900+10"]
[Date "2021.12.26"]
[WhiteClock "0:00:12"]
[BlackClock "0:00:13"]

1. d4 {[%clk 0:15:24]}  Nf6 {[%clk 0:15:26]} 2. c4 {[%clk 0:15:24]}  e6 {[%clk 0:15:26]} 3. Nf3 {[%clk 0:15:24]}  d5 {[%clk 0:15:26]} 4. e3 {[%clk 0:15:24]}  a6 {[%clk 0:15:26]} 5. Nbd2 {[%clk 0:15:24]}  c5 {[%clk 0:15:26]} 6. cxd5 {[%clk 0:15:24]}  exd5 {[%clk 0:15:26]} 7. b3 {[%clk 0:15:13]}  Nc6 {[%clk 0:14:26]} 8. Bb2 {[%clk 0:15:13]}  cxd4 {[%clk 0:14:28]} 9. Nxd4 {[%clk 0:15:13]}  Bd6 {[%clk 0:11:57]} 10. Be2 {[%clk 0:15:15]}  O-O {[%clk 0:11:54]} 11. O-O {[%clk 0:15:15]}  Re8 {[%clk 0:11:54]} 12. a3 {[%clk 0:13:24]}  Qe7 {[%clk 0:11:40]} 13. b4 {[%clk 0:13:24]}  Ne5 {[%clk 0:11:40]} 14. Qb3 {[%clk 0:13:24]}  b5 {[%clk 0:10:29]} 15. Rfd1 {[%clk 0:13:10]}  Bd7 {[%clk 0:09:50]} 16. Nf1 {[%clk 0:07:46]}  Nc4 {[%clk 0:07:39]} 17. Ng3 {[%clk 0:07:16]}  g6 {[%clk 0:07:39]} 18. Nf3 {[%clk 0:07:10]}  Nxb2 {[%clk 0:07:02]} 19. Qxb2 {[%clk 0:07:10]}  h5 {[%clk 0:07:02]} 20. Rac1 {[%clk 0:04:11]}  a5 {[%clk 0:07:11]} 21. Nd4 {[%clk 0:02:42]}  h4 {[%clk 0:07:11]} 22. Nf1 {[%clk 0:02:42]}  axb4 {[%clk 0:07:11]} 23. axb4 {[%clk 0:02:42]}  Ra4 {[%clk 0:06:28]} 24. Bxb5 {[%clk 0:02:08]}  Rxb4 {[%clk 0:06:28]} 25. Qe2 {[%clk 0:02:08]}  Bxb5 {[%clk 0:04:07]} 26. Nxb5 {[%clk 0:02:03]}  Be5 {[%clk 0:04:07]} 27. Qd3 {[%clk 0:02:11]}  h3 {[%clk 0:03:50]} 28. g3 {[%clk 0:02:11]}  Rb8 {[%clk 0:03:26]} 29. Nc3 {[%clk 0:00:53]}  Bxc3 {[%clk 0:03:26]} 30. Rxc3 {[%clk 0:00:53]}  Ne4 {[%clk 0:01:03]} 31. Rc2 {[%clk 0:00:42]}  Qf6 {[%clk 0:01:01]} 32. f4 {[%clk 0:00:42]}  Rb2 {[%clk 0:01:01]} 33. Nd2 {[%clk 0:00:42]}  Rxc2 {[%clk 0:01:01]} 34. Qxc2 {[%clk 0:00:42]}  Qb2 {[%clk 0:01:01]} 35. Qd3 {[%clk 0:00:42]}  Qa2 {[%clk 0:00:16]} 36. Kf1 {[%clk 0:00:12]}  Rc8 {[%clk 0:00:13]} 37. Ke1 {[%clk 0:00:12]}  Qa5 {[%clk 0:00:13]} 38. Kf1 {[%clk 0:00:12]}  Rc3 {[%clk 0:00:13]} 39. Qd4 {[%clk 0:00:12]}  Qb5+ {[%clk 0:00:13]} 40. Ke1 {[%clk 0:00:12]}  Rd3 {[%clk 0:00:13]} 41. Qa7 {[%clk 0:00:12]}  Qb4 {[%clk 0:00:13]} 42. Qa8+ {[%clk 0:00:12]}  Kh7 {[%clk 0:00:13]} 43. Qa2 {[%clk 0:00:12]}  Rxe3+ {[%clk 0:00:13]} 44. Kf1 {[%clk 0:00:12]}  Qb5+ {[%clk 0:00:13]} 0-1


[Site "http://www.Chess.com"]

[Event "FIDE World Rapid Chess Championship 2021"]
[White "Anton Guijarro, David"]
[Black "Gukesh, D"]
[WhiteFideId "2285525"]
[BlackFideId "46616543"]
[WhiteElo "2627"]
[BlackElo "2050"]
[Result "1-0"]
[Round "04"]
[TimeControl "900+10"]
[Date "2021.12.26"]
[WhiteClock "0:01:08"]
[BlackClock "0:00:35"]

1. Nf3 {[%clk 0:15:24]}  Nf6 {[%clk 0:15:25]} 2. c4 {[%clk 0:15:24]}  e6 {[%clk 0:15:25]} 3. g3 {[%clk 0:15:24]}  d5 {[%clk 0:15:25]} 4. Bg2 {[%clk 0:15:24]}  Be7 {[%clk 0:15:25]} 5. O-O {[%clk 0:15:24]}  O-O {[%clk 0:15:25]} 6. b3 {[%clk 0:15:24]}  b6 {[%clk 0:15:24]} 7. cxd5 {[%clk 0:15:44]}  exd5 {[%clk 0:13:37]} 8. Nc3 {[%clk 0:15:44]}  Bb7 {[%clk 0:13:37]} 9. e3 {[%clk 0:15:44]}  Nbd7 {[%clk 0:13:37]} 10. Bb2 {[%clk 0:15:44]}  a6 {[%clk 0:12:46]} 11. Rc1 {[%clk 0:14:51]}  Re8 {[%clk 0:12:46]} 12. Ne2 {[%clk 0:14:51]}  Bd6 {[%clk 0:12:24]} 13. Nf4 {[%clk 0:13:07]}  Nc5 {[%clk 0:12:15]} 14. b4 {[%clk 0:11:50]}  Ne6 {[%clk 0:08:48]} 15. Nxe6 {[%clk 0:11:50]}  fxe6 {[%clk 0:08:48]} 16. Qb3 {[%clk 0:11:50]}  e5 {[%clk 0:08:43]} 17. Nh4 {[%clk 0:06:19]}  a5 {[%clk 0:08:20]} 18. b5 {[%clk 0:06:19]}  a4 {[%clk 0:06:38]} 19. Qd3 {[%clk 0:06:19]}  Qd7 {[%clk 0:06:38]} 20. f4 {[%clk 0:04:36]}  e4 {[%clk 0:05:28]} 21. Qe2 {[%clk 0:04:32]}  Rf8 {[%clk 0:05:28]} 22. Be5 {[%clk 0:04:35]}  Ra5 {[%clk 0:05:44]} 23. Bxd6 {[%clk 0:04:35]}  cxd6 {[%clk 0:05:44]} 24. Rb1 {[%clk 0:04:35]}  Ne8 {[%clk 0:01:30]} 25. Rfc1 {[%clk 0:03:38]}  Rf7 {[%clk 0:01:32]} 26. d3 {[%clk 0:01:45]}  Nc7 {[%clk 0:01:20]} 27. dxe4 {[%clk 0:01:39]}  dxe4 {[%clk 0:01:31]} 28. Qf1 {[%clk 0:01:39]}  g5 {[%clk 0:01:31]} 29. Bh3 {[%clk 0:01:39]}  g4 {[%clk 0:01:31]} 30. Bg2 {[%clk 0:01:39]}  Rxb5 {[%clk 0:01:31]} 31. Rxb5 {[%clk 0:01:39]}  Nxb5 {[%clk 0:00:25]} 32. h3 {[%clk 0:01:11]}  h5 {[%clk 0:00:25]} 33. hxg4 {[%clk 0:01:11]}  hxg4 {[%clk 0:00:25]} 34. Qd1 {[%clk 0:01:11]}  d5 {[%clk 0:00:25]} 35. Qxa4 {[%clk 0:01:11]}  d4 {[%clk 0:00:25]} 36. exd4 {[%clk 0:01:11]}  Qxd4+ {[%clk 0:00:25]} 37. Qxd4 {[%clk 0:01:11]}  Nxd4 {[%clk 0:00:25]} 38. Kf2 {[%clk 0:01:11]}  Nf3 {[%clk 0:00:55]} 39. Ke3 {[%clk 0:00:30]}  Rd7 {[%clk 0:00:55]} 40. Bf1 {[%clk 0:00:30]}  Bd5 {[%clk 0:00:55]} 41. a3 {[%clk 0:00:30]}  Ra7 {[%clk 0:00:55]} 42. Rc3 {[%clk 0:00:30]}  Nxh4 {[%clk 0:00:55]} 43. gxh4 {[%clk 0:00:30]}  Rh7 {[%clk 0:00:55]} 44. Rc8+ {[%clk 0:00:30]}  Kg7 {[%clk 0:00:55]} 45. Rc7+ {[%clk 0:00:30]}  Kh6 {[%clk 0:00:55]} 46. Rxh7+ {[%clk 0:00:30]}  Kxh7 {[%clk 0:00:55]} 47. f5 {[%clk 0:00:30]}  Kh6 {[%clk 0:00:29]} 48. Kf4 {[%clk 0:01:00]}  Kh5 {[%clk 0:00:29]} 49. Be2 {[%clk 0:01:00]}  Kxh4 {[%clk 0:00:29]} 50. Bxg4 {[%clk 0:01:00]}  Bc4 {[%clk 0:00:32]} 51. Bd1 {[%clk 0:01:14]}  e3 {[%clk 0:00:32]} 52. Kxe3 {[%clk 0:01:14]}  Kg5 {[%clk 0:00:32]} 53. Kd4 {[%clk 0:01:14]}  Ba2 {[%clk 0:00:32]} 54. Ke5 {[%clk 0:01:14]}  Bb1 {[%clk 0:00:32]} 55. f6 {[%clk 0:01:14]}  Ba2 {[%clk 0:00:32]} 56. Bc2 {[%clk 0:01:14]}  Bc4 {[%clk 0:00:32]} 57. Bf5 {[%clk 0:01:14]}  b5 {[%clk 0:00:32]} 58. Bd7 {[%clk 0:01:08]}  Kg6 {[%clk 0:00:35]} 59. Be8+ {[%clk 0:01:08]}  Kh7 {[%clk 0:00:35]} 60. Kd6 {[%clk 0:01:08]} 1-0


[Site "http://www.Chess.com"]